Cogmind - Beta 15 @@@ ROGUE MODE // 2025.08.10 @ 19:05:37 Player: Skysub Result: Destroyed by A6-LM1(R) with Subdweller Beam Cannon Performance ------------- Evolutions (0) 0 Regions Visited (2) 400 Robots Destroyed (34) 170 Value Destroyed (877) 877 Prototype IDs (0) 0 Alien Tech Used (0) 0 Bonus (-23) -23 TOTAL SCORE: 1424 Bonus ------- Friendly Fire -23 Cogmind --------- Core Integrity 0/250 Matter 166/300 Energy 200/200 System Corruption 0% Temperature Cool (9) Movement Core (500) Ox9 Location -10/Subcaves Parts ------- > --- POWER (1) -------- Subdweller Power Source > --- PROPULSION (2) --- Compact Wheel > --- UTILITY (2) ------ Improved Heat Sink Large Storage Unit > --- WEAPON (2) ------- Assault Rifle > --- INVENTORY (15) --- Subdweller Power Source Subdweller Power Source Compact Wheel Disposable Heat Sink Small Storage Unit Subdweller Optics Medium Laser Light Assault Rifle Light Assault Rifle Light Assault Rifle Grenade Launcher Mining Laser Makeshift Axe Peak State ------------ > --- POWER ------------ Subdweller Power Source > --- PROPULSION ------- Light Treads Compact Wheel > --- UTILITY ---------- Improved Heat Sink Large Storage Unit > --- WEAPON ----------- Grenade Launcher Makeshift Axe > --- INVENTORY -------- Compact Wheel Disposable Heat Sink Small Storage Unit Subdweller Optics Medium Laser Assault Rifle Light Assault Rifle Light Assault Rifle Light Assault Rifle Grenade Launcher Mining Laser [Rating: 14] Favorites ----------- Power Light Ion Engine Engine Light Ion Engine Propulsion Light Treads Treads Light Treads Wheel Compact Wheel Utility Large Storage Unit Device Improved Heat Sink Storage Large Storage Unit Weapon Assault Rifle Energy Gun Medium Laser Ballistic Gun Assault Rifle Launcher Grenade Launcher Slashing Weapon Makeshift Axe Build | -11 -10 -10 ------- Run | Yrd Mat Sub Slots Evolved . | . . . Power . | . . . Propulsion . | . . . Utility . | . . . Weapon . | . . . Parts Attached 20 | 7 4 9 Power 3 | 1 . 2 Engine 3 | 1 . 2 Core . | . . . Reactor . | . . . Propulsion 6 | 2 1 3 Treads 4 | 2 1 1 Leg . | . . . Wheel 2 | . . 2 Hover . | . . . Flight . | . . . Utility 5 | 2 2 1 Device 3 | 1 1 1 Storage 2 | 1 1 . Processor . | . . . Hackware . | . . . Protection . | . . . Artifact . | . . . Weapon 6 | 2 1 3 Energy Gun 1 | 1 . . Energy Cannon . | . . . Ballistic Gun 3 | 1 1 1 Ballistic Cannon . | . . . Launcher 1 | . . 1 Special Weapon . | . . . Impact Weapon . | . . . Slashing Weapon 1 | . . 1 Piercing Weapon . | . . . Special Melee Weapon . | . . . Unidentified Prototypes . | . . . Parts Lost 10 | . 3 7 Power 2 | . 1 1 Propulsion 4 | . 1 3 Utility 2 | . 1 1 Weapon 2 | . . 2 Highest Loss Streak 2 | . 1 2 To Critical Strikes . | . . . Average Backups 9 | 3 8 11 Power . | . 1 . Propulsion 1 | 1 2 1 Utility 1 | . . 2 Weapon 5 | . 4 6 Tool/Special . | . . . Unused Backups 8 | . . 8 Power 2 | . . 2 Propulsion . | . . . Utility 2 | . . 2 Weapon 4 | . . 4 Tool/Special . | . . . Average Slot Usage (%) 96 | . 93 97 Engine 13 | . 12 13 Treads 20 | . 27 15 Wheel 7 | . . 11 Device 11 | . 9 12 Storage 14 | . 14 14 Energy Gun 7 | . 14 2 Ballistic Gun 16 | . 14 17 Launcher 2 | . . 4 Slashing Weapon 1 | . . 2 Peak Build Rating 14 | 7 8 14 Average Rating 8 | 5 6 10 On Entrance 4 | . 7 7 Naked Turns . | . . . Heaviest Build 32 | 13 28 32 Greatest Support 40 | 40 40 40 Greatest Overweight (x) 1 | . . 1 Average Overweight (x) . | . . . Largest Inventory Capacity 15 | 8 15 15 Average Capacity 13 | 7 13 15 Most Carried 13 | 5 11 13 Average Carried 9 | 3 8 11 Final Capacity 15 | 8 15 15 Final Carried 13 | 5 11 13 Class Distribution -------------------- 100% | Mutant Dominant Class ---------------- Mutant | -10/Materials Mutant | -10/Subcaves Resources | -11 -10 -10 ----------- Run | Yrd Mat Sub Matter Collected 678 | 312 179 187 Remotely . | . . . Salvage Created 1127 | 192 591 344 Parts 66 | 11 36 19 Haulers Intercepted 1 | . 1 . Recyclers Shooed 2 | . 2 . Parts Field Recycled . | . . . Retrieved Matter . | . . . Parts Self-Destructed 10 | . . 10 Prevented . | . . . Kills | -11 -10 -10 ------- Run | Yrd Mat Sub Combat Hostiles Destroyed 25 | . 15 10 Guns 19 | . 15 4 AOE 6 | . . 6 Classes Destroyed 8 | 3 4 1 Worker 1 | 1 . . Tunneler 5 | 4 1 . Hauler 1 | . 1 . Recycler 1 | 1 . . Watcher 1 | . 1 . Swarmer 5 | . 5 . Grunt 12 | . 10 2 Subdweller 8 | . . 8 Best Kill Streak 4 | 4 4 3 Combat Bots Only 3 | . 3 3 Max Kills in Single Turn 2 | 2 2 2 Gunslinging 1 | . 1 . Exploded 2 | . . 2 Melee . | . . . Uniques/NPCs Destroyed . | . . . Combat | -11 -10 -10 -------- Run | Yrd Mat Sub Hostile Shots Fired 119 | . 67 52 Missed 32 | . 13 19 Hits 87 | . 54 33 Projectile 87 | . 54 33 Damage Taken 1309 | . 593 716 Core 255 | . 103 152 Absorbed by Shields . | . . . Core Remaining (%) 100 | 100 . . Volleys Fired 113 | 14 59 40 Largest 2 | 2 2 2 Hottest 70 | 70 70 70 Shots Fired 214 | 28 118 68 Gun 199 | 28 118 53 Cannon . | . . . Launcher 15 | . . 15 Special . | . . . Kinetic 111 | 14 59 38 Thermal 88 | 14 59 15 Explosive 15 | . . 15 Electromagnetic . | . . . Robot Hit Streak 10 | 10 8 9 Robot Miss Streak 5 | 3 5 3 Penetration Max . | . . . Secondary Targets 2 | . 2 . Max Gunslinging Chain 1 | . 1 . Shots Hit Robots 144 | 20 75 49 Core Hits 65 | 7 34 24 Critical Kills . | . . . Critical Parts Destroyed 1 | . 1 . Critical Strikes 7 | 1 6 . Burn 6 | 1 5 . Destroy 1 | . 1 . Melee Attacks 3 | . . 3 Impact . | . . . Slashing 3 | . . 3 Piercing . | . . . Sneak Attacks . | . . . Combat Hostiles . | . . . Follow-up Attacks . | . . . Damage Inflicted 2594 | 284 975 1335 Guns 1659 | 279 959 421 Cannons . | . . . Explosions 914 | . . 914 Melee . | . . . Ramming 21 | 5 16 . Kinetic 882 | 139 458 285 Thermal 777 | 140 501 136 Explosive 914 | . . 914 Electromagnetic . | . . . Impact . | . . . Slashing . | . . . Piercing . | . . . Highest Corruption . | . . . Average Corruption . | . . . Corruption Purged . | . . . Corruption Blocked . | . . . Overload Shots . | . . . Overflow Damage 10 | . . 10 Projectiles . | . . . Explosions 10 | . . 10 Melee . | . . . Knockbacks . | . . . Impact . | . . . Kinetic . | . . . Secondary . | . . . Self-Inflicted Damage 71 | . . 71 Shots 4 | . . 4 Rammed 7 | 1 6 . Targets Rammed 7 | 1 6 . Kicked . | . . . Crushed . | . . . Highest Temperature 261 | 36 261 4 Average Temperature 55 | 16 65 2 Received Heat Transfer 423 | . 285 138 Effects 1 | . 1 . Energy Bleed 1 | . 1 . Siege Activations . | . . . Martial Activations . | . . . Shielding Activations . | . . . Robots Disrupted . | . . . Combat Hostiles . | . . . Robots Corrupted . | . . . Combat Hostiles . | . . . Parts Fried . | . . . Impact Corruptions . | . . . Robots Melted . | . . . Combat Hostiles . | . . . Parts Melted 8 | . 8 . Heat Transferred 2738 | 481 1850 407 Parts Sabotaged . | . . . Parts Stolen . | . . . Parts Stripped . | . . . Power Chain Reactions . | . . . Alert | -11 -10 -10 ------- Run | Yrd Mat Sub Maximum Alert Level . | . . . Low Security (%) 100 | 100 100 . Level 1 . | . . . Level 2 . | . . . Level 3 . | . . . Level 4 . | . . . Level 5 . | . . . High Security . | . . . Max Security . | . . . Peak Influence 197 | 15 197 . Initial . | . . . Average 75 | 1 101 . Influence Increases 624 | 30 424 170 Destroy 0b10 Robot/C 340 | . 300 40 Destroy 0b10 Robot/NC 45 | 30 15 . Destroy Leader 74 | . 64 10 Lose Combat Pursuer 165 | . 45 120 Influence Decreases 620 | 30 296 294 Entered New Map 62 | . . 62 Time Decay 482 | 30 266 186 Lost Part 76 | . 30 46 Squads Dispatched 2 | . 2 . Investigation 1 | . 1 . Extermination . | . . . Reinforcement 1 | . 1 . Assault . | . . . Garrison . | . . . Intercept . | . . . Searches Triggered . | . . . Construction Impeded . | . . . Haulers Reinforced . | . . . Active Scanning Responses . | . . . Cargo Convoy Interrupts . | . . . Stealth | -11 -10 -10 --------- Run | Yrd Mat Sub Distress Signals 4 | . 4 . Communications Jammed . | . . . Distress Signals . | . . . Times Spotted 45 | . 29 16 Peak Tracking Total 6 | . 5 6 Tactical Retreats 5 | . 3 2 Traps | -11 -10 -10 ------- Run | Yrd Mat Sub Traps Triggered 1 | . 1 . Indirectly . | . . . Trap Hack Attempts . | . . . Triggered . | . . . Disarmed . | . . . Reprogrammed . | . . . Reused . | . . . Traps Extracted . | . . . Installed . | . . . Triggered . | . . . Machines | -11 -10 -10 ---------- Run | Yrd Mat Sub Machines Disabled 3 | . . 3 Max in Single Turn 3 | . . 3 Machines Repaired . | . . . Machines Dismantled . | . . . Machines Sabotaged . | . . . Overloaded Fab Kills . | . . . Hacking | -11 -10 -10 --------- Run | Yrd Mat Sub Machines Accessed 1 | . 1 . Terminals 1 | . 1 . Fabricators . | . . . Repair Stations . | . . . Recycling Units . | . . . Scanalyzers . | . . . Garrison Access . | . . . Total Hacks 2 | . 2 . Successful . | . . . Failed 2 | . 2 . Catastrophic . | . . . Database Lockouts . | . . . Manual 2 | . 2 . Terminals 2 | . 2 . Fabricators . | . . . Repair Stations . | . . . Recycling Units . | . . . Scanalyzers . | . . . Garrison Access . | . . . Terminal Hacks . | . . . Fabricator Hacks . | . . . Repair Station Hacks . | . . . Recycling Unit Hacks . | . . . Scanalyzer . | . . . Garrison Access Hacks . | . . . Unauthorized Hacks . | . . . Terminals . | . . . Fabricators . | . . . Repair Stations . | . . . Recycling Units . | . . . Scanalyzers . | . . . Garrison Access . | . . . Data Cores Recovered . | . . . Used . | . . . Hacking Detections 1 | . 1 . Full Trace Events . | . . . Feedback Events . | . . . Feedback Blocked . | . . . Robot Schematics Acquired . | . . . Robots Built . | . . . Authchips . | . . . Time . | . . . Total Robot Build Rating . | . . . Part Schematics Acquired . | . . . Parts Built . | . . . Authchips . | . . . Time . | . . . Total Part Build Rating . | . . . Parts Repaired . | . . . Time . | . . . Parts Recycled . | . . . Recycled Matter . | . . . Retrieved Matter . | . . . Retrieved Components . | . . . Parts Scanalyzed . | . . . Part Schematics Acquired . | . . . Parts Damaged . | . . . Bothacking | -11 -10 -10 ------------ Run | Yrd Mat Sub Used RIF Installer . | . . . Robots Hacked . | . . . Non-combat . | . . . Combat . | . . . Robot Hacks Applied . | . . . Relay Couplers Released . | . . . Fabnet Peak Effective % . | . . . Robots Rewired . | . . . Allies Hacked . | . . . Hacks Repelled . | . . . Allies | -11 -10 -10 -------- Run | Yrd Mat Sub Total Allies . | . . . Largest Group . | . . . Highest-Rated Group . | . . . Highest-Rated Ally . | . . . Total Orders . | . . . Ally Attacks . | . . . Total Damage . | . . . Kills . | . . . Allies Corrupted . | . . . Allies Melted . | . . . Intel | -11 -10 -10 ------- Run | Yrd Mat Sub Active Infowar (turns) 211 | 35 176 . Seismic 211 | 35 176 . Robot Analysis Total . | . . . Derelict Logs Recovered 1 | . . 1 Drone Launches . | . . . Drone Recoveries . | . . . Exploration | -11 -10 -10 ------------- Run | Yrd Mat Sub Turns Passed 1796 | 222 626 948 Spaces Moved 1010 | 106 248 656 Core 8 | 8 . . Treads 419 | 98 248 73 Legs . | . . . Wheels 583 | . . 583 Hover . | . . . Flight . | . . . Fastest Speed 50 | 50 160 115 Average Speed 135 | 151 160 123 Slowest Speed 260 | 160 160 260 Overloaded Moves . | . . . Propulsion Burnouts . | . . . Robots Hopped . | . . . Potential Cave-ins . | . . . Cave-ins Triggered . | . . . Exploration Rate (%) 31 | 7 41 46 Regions Visited 2 Branch Regions 1 Pre-discovered Areas 1 | . . 1 Known Exits Taken . | . . . Unknown Exits Taken 2 | 1 1 . Scrap Searched . | . . . Spaces Dug . | . . . Terrain Destroyed 42 | . . 42 Melee . | . . . Projectile . | . . . AOE 42 | . . 42 Terrain Rammed . | . . . Walls Destroyed . | . . . Machines Disabled . | . . . Actions | -11 -10 -10 --------- Run | Yrd Mat Sub Total 1212 | 135 356 721 Wait 37 | 3 33 1 Move 1008 | 105 247 656 Hop . | . . . Pick Up 19 | 5 7 7 Fast Attach 7 | 7 . . Attach 8 | . 2 6 Detach . | . . . Swap 10 | . 2 8 Drop . | . . . Fire 113 | 14 59 40 Melee 3 | . . 3 Ram . | . . . Kick . | . . . Crush 7 | 1 6 . Escape Stasis . | . . . Rewire . | . . . Trap . | . . . Miscellaneous . | . . . Route ------- -11/Scrapyard -10/Materials (discovered 5 exits: [*Mat x3] / [*Min] / [*Sub]) -10/Subcaves (discovered 3 exits: [*Mat x2] / [*Scr]) History --------- Turn | Location | Event 7 | -11/Scrapyard | Discovered new exit (range 16) 223 | -11/Scrapyard | Entered Materials 252 | -10/Materials | Discovered new exit (range 13) 300 | -10/Materials | Build established: Mutant 314 | -10/Materials | Discovered new exit (range 13) 698 | -10/Materials | Discovered new exit (range 5) 785 | -10/Materials | Discovered new exit (range 16) 836 | -10/Materials | Discovered new exit (range 9) 849 | -10/Materials | Entered Subcaves 850 | -10/Subcaves | Approached by a straggling Scientist 950 | -10/Subcaves | Core integrity fell below 50% 1201 | -10/Subcaves | Discovered new exit (range 7) 1511 | -10/Subcaves | Learned location of Storage (-8) 1591 | -10/Subcaves | Scientist uncovered a shortcut to Scraptown 1628 | -10/Subcaves | Discovered new exit (range 15) 1636 | -10/Subcaves | Core integrity fell below 20% 1734 | -10/Subcaves | A swath of the cavern ceiling suddenly collapsed 1794 | -10/Subcaves | Visited 4L-MR0's lab 1797 | -10/Subcaves | Destroyed by A6-LM1(R) with Subdweller Beam Cannon Last Messages --------------- 01518_ JU-6M3(R) destroyed. 01518_ N2-ZTC(R) destroyed. 01518_ Lgt. Ion Engine destroyed. 01518_ Destroyed Lgt. Ion Engine. 01523_ Acquired Sub. Power Source. 01526_ Acquired 18 matter. RO-GGE(c): "I think it's somewhere south of here" 01591_ RO-GGE(c): "Hah, right again, there it is!" 01592_ RO-GGE(c) exits level. 01628_ EXIT=FOUND 01637_ DH-GR8(R) destroyed. 01637_ 8N-TL8(R) destroyed. 01643_ Acquired 42 matter. 01645_ Acquired 33 matter. 01657_ Subatomizers dissect the Disposable Heat Sink. A swath of the cavern ceiling suddenly collapses. 01794_ 4L-MR0's Prototype Logs disabled. 01794_ Machine disabled. 01797_ Lgt. Treads destroyed. 01797_ Grenade Launcher destroyed. Map ----- +----------------------------------------------------+ | ?????????????????????????????????????????????????? | | ?????????????????????????????????????????????????? | | ?????????????????????????????????????????????????? | | ?????????????????????????????????????????????????? | | ?????????????????????????????????????????????????? | | ?????????????????????????????????????????????????? | | ?????????????????????????????????????????????????? | | ?????????????????????????????????????????????????? | | ?????????????????????????????????????????????????? | | ?????????????????????????????????????????????????? | | ?????????????????????????????????????????????????? | | ?????????????????????????????????????????????????? | | ?????????????????????????????????????????????????? | | ?????????????????????????????????????????????????? | | ?????????????????????????????????????????????????? | | ?????????????????????????????????????????????????? | | ?????????????????????????????????????????????????? | | ?????????????????????????????????????????????????? | | ?????????????????????????????????????????????????? | | ?????????????????????????????????????????????????? | | ?????????????????????????????????????????????????? | | ????????????????????#####????????????????????????? | | ???????????????????##<< #??#######???????????????? | | ???????????????????# < ## "!#???????????????? | | ???????????????????#<< <<# R R ###???????????????? | | ???????????????????# <<<@ R ""#???????????????? | | ???????????????????# < < # "#???????????????? | | ???????????????????#< ##########???????????????? | | ???????????????????# << ##???????????????????????# | | ???????????????????#<< ""######??????????????????# | | ???????????????????##<" # #?????????????###### | | ????????????????????# ##???????####### # | | ????????????????????## ## "#??###### ## | | ?????????????????????#####" "#### ## #### | | ??????????????????# ### " ## #?# #??# | | ??????????????????# ## #### #### | | ??????????????????## #### # ## ## | | ???????????????????### ??# ## ## & | | ?????????????????????# ???## ### # # | | ????????????????????? ????# #?# # ####"""" # | | ???????????????????? ?????# # ##?# ####?###"#"# | | ???????????????????#??????#### ? # #??? #""""""# | | ?????????????????????????????? ?? #"####"" | | ?????????????????????????????#### "? #" ###" | | ????????????????????????????????#### #? " ### | | ???????????????????????????????????#####?# ?# | | ?????????????????????????????????????????## ?# | | ??????????????????????????????????????????# ?## | | ??????????????????????????????????????????## #??# | | ????????????????????????????????????????????###??? | +----------------------------------------------------+ Best States ------------- Heat Dissipation 39 Energy Generation 15 Energy Capacity 200 Matter Stores 300 Matter Capacity 300 Sight Range 16 Terrain Scan Density 10 Evasion (%) 40 Recoil Reduction 2 Item Schematics ----------------- None Robot Schematics ------------------ None Fabricated ------------ Nothing Repaired ---------- Nothing Alien Tech Used ----------------- None Achievements -------------- None Challenges ------------ None Game ------ Seed PulseGravityShielding Manual? 0 Play Time 00:07:23 Cumulative 249.0 hours Start 2025.08.10 @ 18:58:23 End 2025.08.10 @ 19:05:37 Sessions 1 Manual Loads 0 Difficulty Rogue Special Mode None Game No. 263 Rogue 263 Adventurer 0 Explorer 0 Win Type - Total 11 Types 5/0/3/1/0/0/0/1/0/1 Lore% 75 Gallery% 71 Achievement% 66 Wizard Run 0 Options --------- Layout 1 ASCII 0 Keyboard 1 Movement Numpad Keybinds 0 Fullscreen 1 Font 32/SmallcapsGlow Map View 77x35 Zoom Use 0% Tactical HUD 1 Map Filters NONE Filters NONE Steam 1 RUN: 308859be-a58b-4476-8363-ade8f6306583